[Event "Dutch Meesterklasse 2024-25"]
[Site "Netherlands"]
[Date "2024.09.22"]
[Round "1.3"]
[White "Nijboer, Friso"]
[Black "Kerigan, Demre"]
[Result "1/2-1/2"]
[ECO "C77"]
[WhiteElo "2452"]
[BlackElo "2351"]
[Annotator "TA"]
[PlyCount "108"]
[EventDate "2024.09.21"]
[EventType "team-tourn"]
[EventCountry "NED"]
[SourceTitle "playchess.com"]
[Source "ChessBase"]
[SourceQuality "1"]
[TimeControl "40/5400+30:1800+30"]

{[%evp 16,108,21,32,23,16,22,20,52,56,53,58,44,42,52,38,66,54,54,54,114,92,292,179,180,41,30,38,31,19,30,26,33,35,32,28,25,13,18,18,43,26,46,36,39,37,19,12,33,27,33,29,52,34,27,0,0,0,41,0,12,17,6,8,8,12,6,0,0,0,0,0,0,0,0,0,0,0,0,0,8,8,8,8,8,8,8,8,8,8,8,8,8,8,8]} 1. e4 {[%emt 0:00:02]} e5 {[%emt 0:00:19]} 2. Nf3 {[%emt 0:00:06]} Nc6 {[%emt 0:00:06]} 3. Bb5 {[%emt 0:00:06]} a6 {[%emt 0:00:12]} 4. Ba4 {[%emt 0:00:05]} Nf6 {[%emt 0:00:06]} 5. d3 {[%emt 0:01:04]} d6 {[%emt 0:00:27]} 6. c3 {[%emt 0:07:10]} g6 {[%emt 0:00:32]} 7. O-O {[%emt 0:03:04]} Bg7 {[%emt 0:00:07]} 8. h3 {[%emt 0:03:41]} O-O {[%emt 0:00:46]} 9. Re1 {[%emt 0:01:32]} Bd7 {[%emt 0:05:41]} 10. Bc2 {[%emt 0:14:24]} h6 {[%emt 0:06:09]} 11. d4 {[%emt 0:05:37]} Qe8 {[%emt 0:11:48]} 12. Be3 {[%emt 0:06:14]} exd4 {[%emt 0:08:47]} 13. cxd4 {[%emt 0:03:58]} Nxe4 {[%emt 0:19:19]} 14. Bxe4 {[%emt 0:27:25]} Qxe4 {[%emt 0:00:13] [#]} 15. Bxh6 {[%emt 0:00:44]} Qf5 {[%emt 0:01:52]} 16. Bxg7 {[%emt 0:00:11]} Kxg7 {[%emt 0:00:07]} 17. d5 {[%emt 0:00:04]} Na7 {[%emt 0:19:18]} (17... Ne5 $14) 18. Nc3 {[%emt 0:08:58]} Nc8 $2 {[%emt 0:03:39]} (18... Nb5 $16 {might work better.}) 19. Qd4+ {[%emt 0:03:49]} Qf6 {[%emt 0:03:24]} 20. Qxf6+ {[%emt 0:00:18]} ({White should try} 20. Qd2 $18) 20... Kxf6 $14 {[%emt 0:00:08]} 21. Ne4+ {[%emt 0:00:06] A dynamic duo of knights.} Kg7 {[%emt 0:00:23]} 22. Rac1 {[%emt 0:00:15]} c6 {[%emt 0:04:15]} 23. dxc6 {[%emt 0:00:09]} Bxc6 {[%emt 0:00:13]} 24. Nd4 {[%emt 0:00:12]} Re8 {[%emt 0:02:33]} 25. f3 {[%emt 0:03:08]} Bxe4 {[%emt 0:02:47]} 26. Rxe4 {[%emt 0:01:20]} Rxe4 {[%emt 0:00:12]} 27. fxe4 $11 {[%emt 0:00:01][%mdl 4096] Endgame. KRN-KRN} Rb8 {[%emt 0:08:24]} 28. Rc7 {[%emt 0:07:48]} Nb6 {[%emt 0:00:07]} 29. Nf3 {[%emt 0:01:09]} Kf6 {[%emt 0:00:21] Against Ng5} 30. h4 {[%emt 0:00:43]} Na8 $1 {[%emt 0:00:10]} 31. Rc4 {[%emt 0:00:38]} Re8 {[%emt 0:00:40]} 32. Kf2 {[%emt 0:00:58]} Ke7 {[%emt 0:00:41]} 33. e5 {[%emt 0:00:53]} Rd8 {[%emt 0:01:31]} 34. Ke3 {[%emt 0:00:58]} dxe5 {[%emt 0:01:35]} 35. Rb4 {[%emt 0:00:35]} b5 {[%emt 0:00:18] ...Nb6 would now be deadly.} 36. Nxe5 {[%emt 0:00:03]} Rd6 {[%emt 0:00:09] Against Nc6+} 37. Re4 {[%emt 0:00:07]} f5 {[%emt 0:00:41] The position is equal.} 38. Rd4 {[%emt 0:00:28] [#] Strongly threatening Rxd6.} (38. Nxg6+ $2 {too greedy.} Kf6 39. Rf4 (39. Re8 $2 Nc7 $19) 39... Re6+ (39... Kxg6 $2 40. g4 $19) 40. Kd3 Kxg6 $19) 38... Re6 {[%emt 0:00:26]} 39. Kf4 {[%emt 0:00:29]} Nb6 {[%emt 0:00:21] Repels Rd7+} 40. b3 {[%emt 0:00:29]} Kf6 {[%emt 0:00:40]} 41. Nf3 {[%emt 0:30:23]} Re4+ {[%emt 0:01:24]} 42. Kg3 {[%emt 0:00:00]} (42. Rxe4 $5 Nd5+ $8 43. Kg3 fxe4 44. Nd4 $17) 42... Rxd4 {[%emt 0:01:16]} 43. Nxd4 {[%emt 0:00:00] KN-KN} b4 {[%emt 0:05:48]} 44. Nc6 {[%emt 0:00:00]} Nd5 {[%emt 0:00:17]} 45. Nb8 {[%emt 0:00:00]} Nc3 {[%emt 0:04:09]} 46. Nxa6 {[%emt 0:00:00]} Nxa2 {[%emt 0:00:06]} 47. Kf4 {[%emt 0:00:00]} Nc1 {[%emt 0:01:03]} 48. Nc5 {[%emt 0:00:00]} g5+ {[%emt 0:06:26]} 49. hxg5+ {[%emt 0:00:00]} Kg6 {[%emt 0:00:16]} 50. g4 {[%emt 0:00:36]} (50. g3 $5) 50... Ne2+ {[%emt 0:01:34]} 51. Ke3 {[%emt 0:00:06]} Nc1 {[%emt 0:00:09]} 52. gxf5+ {[%emt 0:00:04]} Kxf5 {[%emt 0:00:08]} 53. Kd2 {[%emt 0:00:03]} Nxb3+ {[%emt 0:00:08]} 54. Nxb3 {[%emt 0:00:03]} Kxg5 {[%emt 0:00:07] Weighted Error Value: White=0.13 (very precise) /Black=0.13 (very precise) .  Loses game:     	---       	Black=1      Mistake:       	White=1     	Black=1      Inaccurate:     	White=3     	Black=2      OK:         	White=20    	Black=21     Best:        	White=2     	Black=3      Strong:       	---       	Black=1      Brilliant:      	White=1     	---} 1/2-1/2

[Event "Dutch Meesterklasse 2024-25"]
[Site "Netherlands"]
[Date "2024.09.22"]
[Round "1.4"]
[White "Zwirs, Nico"]
[Black "Pijpers, Arthur"]
[Result "0-1"]
[ECO "B76"]
[WhiteElo "2485"]
[BlackElo "2466"]
[Annotator "RC"]
[PlyCount "80"]
[EventDate "2024.09.21"]
[EventType "team-tourn"]
[EventCountry "NED"]
[SourceTitle "playchess.com"]
[Source "ChessBase"]
[SourceQuality "1"]
[TimeControl "40/5400+30:1800+30"]

1. e4 c5 2. Nf3 d6 3. d4 cxd4 4. Nxd4 Nf6 5. Nc3 g6 6. Be3 Bg7 7. f3 Nc6 8. Qd2 O-O 9. O-O-O d5 10. Qe1 e5 11. Nxc6 bxc6 12. exd5 Nxd5 13. Bc4 Be6 14. Ne4 Qc7 15. Bc5 Rfd8 16. Qh4 h6 17. g4 Rd7 18. g5 Qd8 19. Rd2 Rb8 20. Rhd1 h5 21. Qf2 Rdb7 22. b3 Qa5 23. Kb2 Nf4 24. Bxe6 Nxe6 25. c3 Rb5 26. Bd6 Rc8 27. Bb4 Qa6 28. Rd6 Nf4 29. Rd8+ Rxd8 30. Rxd8+ Kh7 31. Be7 Rd5 32. Qc2 Nd3+ 33. Kb1 Ne1 34. Rxd5 cxd5 35. Nc5 Qf1 36. Qd1 Qf2 37. Nd7 e4 38. Nf6+ Bxf6 39. Bxf6 Nd3 40. c4 {[%emt 0:20:00]} d4 {[%emt 0:20:00]} 0-1

[Event "Dutch Meesterklasse 2024-25"]
[Site "Netherlands"]
[Date "2024.09.22"]
[Round "1.4"]
[White "Wemmers, Xander"]
[Black "Gschnitzer, Adrian"]
[Result "0-1"]
[ECO "D30"]
[WhiteElo "2344"]
[BlackElo "2443"]
[Annotator "TA"]
[PlyCount "70"]
[EventDate "2024.09.21"]
[EventType "team-tourn"]
[EventCountry "NED"]
[SourceTitle "playchess.com"]
[Source "ChessBase"]
[SourceQuality "1"]
[TimeControl "40/5400+30:1800+30"]

{[%evp 9,70,25,27,19,18,25,23,18,20,14,10,15,20,16,24,7,34,17,35,38,28,24,14,6,37,17,19,23,31,0,0,0,0,0,-10,-21,-6,-66,-59,-77,-72,-108,-80,-352,-223,-320,-319,-335,-317,-327,-309,-309,-296,-740,-732,-1249,-1591,-5721,-1665,-1900,-599,-825,-822]} 1. d4 {[%emt 0:00:03]} d5 {[%emt 0:01:37]} 2. c4 {[%emt 0:00:11]} e6 {[%emt 0:00:09]} 3. Nf3 {[%emt 0:00:09]} a6 {[%emt 0:00:13]} 4. Bg5 {[%emt 0:00:11]} Be7 {[%emt 0:00:10]} 5. Bxe7 {[%emt 0:00:07]} Qxe7 {[%emt 0:00:43]} 6. Nbd2 {[%emt 0:02:36]} Nf6 {[%emt 0:02:31]} 7. g3 {[%emt 0:05:47]} b6 {[%emt 0:04:14]} 8. Bg2 {[%emt 0:00:39] White has an edge.} Bb7 {[%emt 0:00:23]} 9. cxd5 {[%emt 0:02:58]} exd5 {[%emt 0:00:32]} 10. Rc1 {[%emt 0:01:48]} c5 {[%emt 0:01:20]} 11. Qb3 {[%emt 0:24:46]} Nbd7 {[%emt 0:01:52]} 12. dxc5 {[%emt 0:00:34]} Nxc5 {[%emt 0:00:29]} 13. Qa3 {[%emt 0:00:07]} O-O {[%emt 0:12:26]} 14. Nd4 {[%emt 0:04:50]} Nfe4 {[%emt 0:06:31]} 15. Nxe4 {[%emt 0:03:19]} dxe4 {[%emt 0:00:42]} 16. O-O {[%emt 0:00:28]} Qe5 {[%emt 0:07:06]} 17. Qe3 {[%emt 0:11:28]} Rfd8 {[%emt 0:04:47]} 18. Rfd1 {[%emt 0:02:53]} a5 {[%emt 0:07:14]} 19. Bh3 {[%emt 0:09:31]} g6 {[%emt 0:16:43]} 20. f4 {[%emt 0:01:52]} Qf6 {[%emt 0:06:01]} 21. Bg2 {[%emt 0:06:46]} Rd7 {[%emt 0:02:52] [#] White must now prevent ...Rad8.} 22. Bh3 {[%emt 0:05:12]} Rd6 {[%emt 0:01:49]} 23. Nb3 {[%emt 0:01:26]} (23. Nb5 $11 Rdd8 (23... Rxd1+ 24. Rxd1 Rd8 25. Rxd8+ Qxd8 26. Nc3 $17) 24. Nc3) 23... Rxd1+ $15 {[%emt 0:01:32]} 24. Rxd1 {[%emt 0:00:05]} Qxb2 {[%emt 0:00:59]} 25. Nxc5 {[%emt 0:00:28]} bxc5 {[%emt 0:00:13]} 26. Rc1 $2 {[%emt 0:11:48][%mdl 8192] Loses the game.} (26. Rd7 $17 {was called for.}) 26... Rd8 {[%emt 0:06:37] Threatens to win with ...Rd2.} 27. Rxc5 {[%emt 0:02:45]} (27. Bf1 $142) 27... Rd1+ $19 {[%emt 0:00:45]} ({But not} 27... Qxa2 28. Bg4) 28. Kf2 {[%emt 0:00:01]} Rd3 {[%emt 0:09:25]} ({Less strong is} 28... Qxa2 29. Re5 $17) 29. Rb5 {[%emt 0:00:19]} Qxb5 {[%emt 0:00:08]} 30. exd3 {[%emt 0:00:07]} exd3 {[%emt 0:00:12] KQB-KQB} 31. Qd4 $2 {[%emt 0:00:18]} (31. Bg4) 31... Qh5 {[%emt 0:02:54] Black is clearly winning.} 32. Qe3 {[%emt 0:02:21] Against Qf3+} Qxh3 {[%emt 0:02:31]} 33. Qe8+ {[%emt 0:00:07]} Kg7 {[%emt 0:00:03] [#] ( -> ...Qg2+)} 34. Qe5+ {[%emt 0:00:04]} Kf8 {[%emt 0:00:18]} 35. Qd6+ {[%emt 0:00:53]} Kg8 {[%emt 0:00:41] Weighted Error Value: White=0.86/Black=0.25 (precise) .  Loses game:     	White=1     	---        Mistake:       	White=3     	---        Inaccurate:     	White=3     	Black=3      OK:         	White=8     	Black=10     Best:        	White=2     	Black=2} 0-1

[Event "Dutch Meesterklasse 2024-25"]
[Site "Netherlands"]
[Date "2024.09.22"]
[Round "1.5"]
[White "Muckle, Julius"]
[Black "Breukelman, Jan"]
[Result "1-0"]
[ECO "E15"]
[WhiteElo "2368"]
[BlackElo "2410"]
[Annotator "RC"]
[PlyCount "107"]
[EventDate "2024.09.21"]
[EventType "team-tourn"]
[EventCountry "NED"]
[SourceTitle "playchess.com"]
[Source "ChessBase"]
[SourceQuality "1"]
[TimeControl "40/5400+30:1800+30"]

1. d4 {[%emt 0:00:03]} Nf6 {[%emt 0:00:07]} 2. c4 {[%emt 0:00:01]} e6 {[%emt 0:00:09]} 3. Nf3 {[%emt 0:00:05]} b6 {[%emt 0:00:52]} 4. g3 {[%emt 0:00:05]} Ba6 {[%emt 0:00:06]} 5. b3 {[%emt 0:00:28]} Bb4+ {[%emt 0:00:21]} 6. Bd2 {[%emt 0:00:08]} Be7 {[%emt 0:00:06]} 7. Bg2 {[%emt 0:00:19]} d5 {[%emt 0:00:24]} 8. cxd5 {[%emt 1:33:21]} exd5 {[%emt 0:00:07]} 9. O-O {[%emt 0:00:00]} O-O {[%emt 0:00:26]} 10. Nc3 {[%emt 0:00:00]} Bb7 {[%emt 0:00:45]} 11. Ne5 {[%emt 0:00:00]} Nbd7 {[%emt 0:01:31]} 12. Rc1 {[%emt 0:00:00]} c6 {[%emt 0:08:31]} 13. e4 {[%emt 0:00:00]} Nxe5 {[%emt 0:30:21]} 14. dxe5 {[%emt 0:00:00]} Nxe4 {[%emt 0:00:38]} 15. Nxe4 {[%emt 0:00:00]} dxe4 {[%emt 0:00:08]} 16. Bxe4 {[%emt 0:00:00]} Ba3 {[%emt 0:11:33]} 17. Rc3 {[%emt 0:00:00]} Qe7 {[%emt 0:03:59]} 18. Qc2 {[%emt 0:00:00]} Bb4 {[%emt 0:07:09]} 19. Bxh7+ {[%emt 0:00:00]} Kh8 {[%emt 0:00:02]} 20. Qf5 {[%emt 0:00:00]} Bxc3 {[%emt 0:00:18]} 21. Bxc3 {[%emt 0:00:00]} Qe6 {[%emt 0:00:01]} 22. Qh5 {[%emt 0:00:00]} Qh6 {[%emt 0:00:03]} 23. Qxh6 {[%emt 0:00:00]} gxh6 {[%emt 0:00:02]} 24. Be4 {[%emt 0:00:00]} Kg8 {[%emt 0:04:20]} 25. f4 {[%emt 0:00:00]} Rfb8 {[%emt 0:11:18]} 26. f5 {[%emt 0:00:00]} c5 {[%emt 0:00:01]} 27. Bc2 {[%emt 0:00:00]} Rd8 {[%emt 0:02:58]} 28. Rf4 {[%emt 0:00:00]} h5 {[%emt 0:07:53]} 29. e6 fxe6 30. fxe6 {[%emt 0:00:00]} Rf8 {[%emt 0:03:35]} 31. Bg6 {[%emt 0:00:00]} Bd5 {[%emt 0:01:33]} 32. Rh4 {[%emt 0:00:00]} Rf3 {[%emt 0:01:38]} 33. Rxh5 {[%emt 0:00:00]} Rxc3 {[%emt 0:00:11]} 34. Rxd5 {[%emt 0:00:00]} Kg7 {[%emt 0:02:30]} 35. e7 {[%emt 0:00:00]} Kxg6 {[%emt 0:00:01]} 36. Rd8 {[%emt 0:00:00]} Re3 {[%emt 0:00:02]} 37. Rxa8 {[%emt 0:00:00]} Rxe7 {[%emt 0:00:01]} 38. h4 {[%emt 0:00:00]} Rd7 {[%emt 0:00:06]} 39. g4 {[%emt 0:00:00]} Rd4 {[%emt 0:02:33]} 40. Rg8+ {[%emt 0:00:00]} Kh7 {[%emt 0:01:46]} 41. Rg5 {[%emt 0:26:39]} c4 {[%emt 0:09:20]} 42. bxc4 {[%emt 0:00:00]} Rxc4 {[%emt 0:00:01]} 43. Kf2 {[%emt 0:00:00]} Ra4 {[%emt 0:04:11]} 44. h5 {[%emt 0:00:00]} Rxa2+ {[%emt 0:01:10]} 45. Kg3 {[%emt 0:00:00]} Rc2 {[%emt 0:03:00]} 46. Rd5 {[%emt 0:00:00]} Rc7 {[%emt 0:01:06]} 47. g5 {[%emt 0:00:00]} a5 {[%emt 0:06:19]} 48. Kg4 {[%emt 0:00:00]} a4 {[%emt 0:01:55]} 49. h6 {[%emt 0:00:00]} a3 {[%emt 0:00:09]} 50. Kh5 {[%emt 0:00:00]} Rc5 {[%emt 0:00:38]} 51. Rd7+ {[%emt 0:00:00]} Kh8 {[%emt 0:00:05]} 52. h7 {[%emt 0:00:00]} a2 {[%emt 0:06:55]} 53. Kh6 {[%emt 0:00:00]} a1=Q {[%emt 0:00:12]} 54. Rd8# {[%emt 0:00:00]} 1-0

[Event "Dutch Meesterklasse 2024-25"]
[Site "Netherlands"]
[Date "2024.09.22"]
[Round "1.5"]
[White "Wiersma, Eelke"]
[Black "Lammens, Tim"]
[Result "1/2-1/2"]
[ECO "B12"]
[WhiteElo "2293"]
[BlackElo "2238"]
[Annotator "RC"]
[PlyCount "44"]
[EventDate "2024.09.21"]
[EventType "team-tourn"]
[EventCountry "NED"]
[SourceTitle "playchess.com"]
[Source "ChessBase"]
[SourceQuality "1"]
[TimeControl "40/5400+30:1800+30"]

1. e4 {[%emt 0:00:06]} c6 {[%emt 0:00:06]} 2. d4 {[%emt 0:00:11]} d5 {[%emt 0:00:04]} 3. e5 {[%emt 0:00:10]} Bf5 {[%emt 0:00:09]} 4. Be3 {[%emt 0:00:13]} e6 {[%emt 0:04:21]} 5. Nd2 {[%emt 0:00:12]} Nd7 {[%emt 0:01:20]} 6. Ngf3 {[%emt 0:03:53]} Rc8 {[%emt 0:11:46]} 7. Be2 {[%emt 0:04:36]} Bg6 {[%emt 0:05:24]} 8. O-O {[%emt 0:01:28]} Nh6 {[%emt 0:01:30]} 9. Bxh6 {[%emt 0:17:04]} gxh6 {[%emt 0:00:03]} 10. Nb3 {[%emt 0:00:08]} Be7 {[%emt 0:12:47]} 11. Qd2 {[%emt 0:05:04]} h5 {[%emt 0:00:23]} 12. Ne1 {[%emt 0:03:18]} c5 {[%emt 0:12:22]} 13. c3 {[%emt 0:07:58]} O-O {[%emt 0:04:27]} 14. Nxc5 {[%emt 0:11:39]} Nxc5 {[%emt 0:02:10]} 15. dxc5 {[%emt 0:00:16]} Bxc5 {[%emt 0:01:16]} 16. Qh6 {[%emt 0:07:40]} Qb6 {[%emt 0:22:48]} 17. Nd3 {[%emt 0:02:59]} Be7 {[%emt 0:00:17]} 18. Rad1 {[%emt 0:08:27]} h4 {[%emt 0:04:57]} 19. Nf4 {[%emt 0:08:20]} Qc7 {[%emt 0:03:34]} 20. Nd3 {[%emt 0:00:12]} Qb6 {[%emt 0:01:21]} 21. Nf4 {[%emt 0:00:06]} Qc7 {[%emt 0:00:12]} 22. Nd3 {[%emt 0:00:03]} Qb6 {[%emt 0:01:54]} 1/2-1/2

[Event "Dutch Meesterklasse 2024-25"]
[Site "Netherlands"]
[Date "2024.09.22"]
[Round "1.6"]
[White "Beerdsen, Thomas"]
[Black "Jens, Jelmer"]
[Result "1-0"]
[ECO "B67"]
[WhiteElo "2509"]
[BlackElo "2355"]
[Annotator "TA"]
[PlyCount "103"]
[EventDate "2024.09.21"]
[EventType "team-tourn"]
[EventCountry "NED"]
[SourceTitle "playchess.com"]
[Source "ChessBase"]
[SourceQuality "1"]
[TimeControl "40/5400+30:1800+30"]

1. e4 {[%emt 0:00:09]} c5 {[%emt 0:00:06]} 2. Nf3 {[%emt 0:00:08]} d6 {[%emt 0:00:04]} 3. d4 {[%emt 0:00:14]} cxd4 {[%emt 0:00:06]} 4. Nxd4 {[%emt 0:00:06]} Nf6 {[%emt 0:00:05]} 5. Nc3 {[%emt 0:00:06]} Nc6 {[%emt 0:00:05]} 6. Bg5 {[%emt 0:01:15]} e6 {[%emt 0:00:13]} 7. Qd2 {[%emt 0:00:16]} a6 {[%emt 0:00:31]} 8. O-O-O {[%emt 0:01:12]} Bd7 {[%emt 0:00:48]} 9. Kb1 {[%emt 0:00:57]} Nxd4 {[%emt 0:04:01] is the new trend. B67: Sicilian: Richter-Rauzer: 7...a6 8 0-0-0 Bd7, lines without 9 f4 Be7.} 10. Qxd4 {[%emt 0:00:15]} Be7 {[%emt 0:01:45]} 11. f3 {[%emt 0:03:05]} b5 {[%emt 0:08:19]} 12. h4 {[%emt 0:03:05]} Qc7 {[%emt 0:10:54]} 13. g4 {[%emt 0:02:50]} O-O {[%emt 0:09:55]} 14. Qd2 {[%emt 0:02:30]} b4 {[%emt 0:04:47]} 15. Ne2 {[%emt 0:00:20]} Rfc8 {[%emt 0:02:05]} 16. Nd4 {[%emt 0:04:47]} a5 {[%emt 0:09:28]} 17. Be3 {[%emt 0:02:41]} a4 {[%emt 0:12:47]} 18. Bd3 {[%emt 0:15:24]} e5 {[%emt 0:07:33]} 19. Nf5 {[%emt 0:03:41]} Bxf5 {[%emt 0:00:52]} 20. gxf5 {[%emt 0:01:57]} d5 {[%emt 0:01:09]} 21. Rdg1 $146 {[%emt 0:03:03]} ({Predecessor:} 21. Bg5 dxe4 22. Bxe4 Nxe4 23. fxe4 b3 24. cxb3 axb3 25. Rc1 Qb7 26. Rxc8+ Rxc8 27. Qd3 Rd8 28. Qe2 Bxg5 29. hxg5 Rd2 {0-1 Madina Yadarola,M (2107)-Mingarro Carceller,S (2232) Benidorm Bali op-A 2023 (5)}) 21... Kh8 {[%emt 0:02:30]} 22. h5 {[%emt 0:06:27]} b3 {[%emt 0:10:08]} 23. cxb3 {[%emt 0:05:01]} axb3 {[%emt 0:00:08]} 24. a3 {[%emt 0:03:13]} Qb7 {[%emt 0:04:09]} 25. Qg2 {[%emt 0:03:30]} Rg8 {[%emt 0:01:03]} 26. h6 {[%emt 0:07:33]} g6 {[%emt 0:00:45]} 27. Qh2 {[%emt 0:00:50]} dxe4 {[%emt 0:06:37]} 28. Bc4 {[%emt 0:01:04]} Rgc8 {[%emt 0:01:53]} (28... exf3 29. Qxe5 Qe4+ 30. Qxe4 Nxe4 31. Bxf7 $14) 29. Rc1 $1 {[%emt 0:01:27]} Rxc4 {[%emt 0:01:18]} (29... exf3 $6 30. Qxe5 f2 31. Bd3 (31. Bxf7 Qe4+ 32. Qxe4 Nxe4 $11) (31. Bxf2 $2 Rxc4 32. Bh4 Qe4+ 33. Qxe4 Rxe4 $19) 31... Rxc1+ 32. Rxc1 $16) 30. Rxc4 {[%emt 0:00:10]} Qd5 {[%emt 0:00:26]} 31. Rhc1 $1 {[%emt 0:01:22]} (31. Rc7 $2 Qd3+ 32. Kc1 Qxe3+ $19) 31... Qd3+ {[%emt 0:00:32]} (31... gxf5 32. Rc8+ Ne8 33. Qd2 $18 (33. Rxa8 Qxa8 34. Qxe5+ Bf6 $18)) 32. Ka1 {[%emt 0:00:05]} Qxe3 {[%emt 0:00:21]} 33. Qxe5 {[%emt 0:01:12]} (33. Rc8+ Rxc8 34. Rxc8+ Ng8 35. Qxe5+ f6 36. Qxe4 (36. Qxe7 $2 Qg1+) 36... Qxh6 $11) 33... Bd8 $2 {[%emt 0:01:03][%mdl 8192]} (33... Re8 $11 34. Rc8 Kg8 35. fxg6 fxg6 (35... hxg6 $2 36. Rxe8+ Kh7 37. Rec8 $18)) 34. Rd1 $2 {[%emt 0:02:21]} (34. Rc8 $1 $18 Kg8 35. Qc3 Qxc3 (35... Qxh6 $2 36. Rxa8 Qf8 37. Rd1 $18) 36. R1xc3 Rxc8 37. Rxc8) 34... Kg8 $16 {[%emt 0:00:26]} 35. Rcd4 $1 {[%emt 0:07:40]} Bb6 {[%emt 0:00:04]} 36. Rd7 {[%emt 0:04:34]} Rc8 {[%emt 0:00:43] [#]} (36... Nxd7 37. Qg7#) 37. Kb1 {[%emt 0:02:33]} (37. Rb1 $1 $18 Qg5 (37... Nxd7 38. Qg7#) 38. Rxf7 Kxf7 39. Qe6+ (39. fxe4 $2 gxf5 40. Qd6 Bf2 $19) 39... Kf8 40. Qxc8+ Ne8 41. Qc3 (41. fxe4 Qxh6 42. Qe6 Bd4 $18)) 37... Qg5 $2 {[%emt 0:00:36][%mdl 8192]} (37... Nxd7 38. Qg7#) (37... Qf2 $16 {might work better.} 38. R7d2 (38. Qxf6 $2 Qc2+ 39. Ka1 Qc1+ 40. Rxc1 Rxc1#) 38... Qh4 (38... Qxf3 39. Qxf6)) 38. Rxf7 $18 {[%emt 0:01:47]} (38. R7d6 Qg2 39. R6d2 (39. Rxb6 $2 Qc2+ 40. Ka1 Qxd1#) 39... Qg5 (39... Qxf3 40. Qxf6) 40. fxe4 (40. Rd6 Qg2 $11) 40... Qh4 $11) 38... Kxf7 {[%emt 0:00:40]} (38... Rd8 $142 39. Rxd8+ (39. Qxf6 $2 Rxd1#) 39... Bxd8 40. Rg7+ Kh8) 39. Qe6+ $18 {[%emt 0:00:10]} (39. fxe4 gxf5 (39... Qxh6 40. Qe6+ Kg7 41. Qe7+ Kg8 42. Qe6+ Kg7 43. Qe7+ Kg8 44. Qe6+ Kg7 $11) 40. exf5 Qe3 $19 (40... Qxh6 41. Qe6+ Kg7 42. Qxc8 $14)) 39... Kf8 {[%emt 0:00:02]} 40. Qd6+ {[%emt 0:01:31]} Kf7 {[%emt 0:00:30]} 41. Qe6+ {[%emt 0:32:17]} (41. Qxb6 $2 Qxf5 42. Qxb3+ Kf8 43. fxe4 Qxe4+ (43... Nxe4 $2 44. Ka2 $19) 44. Ka1 Qf4 $19) 41... Kf8 {[%emt 0:30:05]} 42. Qxc8+ {[%emt 0:01:38]} Ne8 {[%emt 0:00:09]} 43. fxe4 $2 {[%emt 0:04:32]} (43. Qc3 $18 {Qh8+ is the strong threat.} gxf5 44. Qb4+ (44. Qxb3 Qxh6 45. fxe4 f4 $18) 44... Qe7 45. Qxb6 exf3 46. Ka1 (46. Qxb3 Qe4+ 47. Ka2 Ke7 $18)) 43... Qg4 $1 $11 {[%emt 0:00:00]} 44. Rf1 $2 {[%emt 0:00:00]} (44. Re1 Bf2 45. Rf1 Qxe4+ 46. Ka1 gxf5 $15 (46... Qxf5 $2 47. Qxf5+ gxf5 48. Rxf2 $18)) (44. Qd7 $11 Qxe4+ 45. Ka1 gxf5 46. Rd3 (46. Qxh7 $2 Bd4 $19)) 44... Qxe4+ $2 {[%emt 0:00:00]} (44... Qe2 $1 $19 {[%cal Re2d3] ( -> ...Qd3+)} 45. Qc1 g5 (45... Qxe4+ 46. Ka1 $11)) 45. Ka1 $14 {[%emt 0:00:00]} Qe2 {[%emt 0:00:00]} (45... g5 $1 $14) 46. Qc1 $1 $16 {[%emt 0:00:00]} g5 {[%emt 0:00:00] [#]} 47. Re1 $1 {[%emt 0:00:00]} Qf2 {[%emt 0:00:00]} 48. Qc3 {[%emt 0:00:00]} Bd4 $2 {[%emt 0:00:00][%mdl 8192]} (48... Qd4 $16) 49. Qb4+ $18 {[%emt 0:00:00]} Bc5 {[%emt 0:00:00] [#]} 50. Qe4 $1 {[%emt 0:00:00]} (50. Qc3 Qd4 (50... Bd4 $2 51. Qb4+ Bc5 52. Qe4 $18) 51. Qxb3 Qd6 $11) 50... Nf6 {[%emt 0:00:00]} 51. Qa8+ {[%emt 0:00:00]} Kf7 {[%emt 0:00:00]} 52. Qb7+ {[%emt 0:00:00]} 1-0